fUSD/lending_fUSD_20250806
["ID","MTS","AMOUNT","RATE_DAILY","PERIOD"]
[377581811,1754448655203,-1455.67,0.00035616,14]
[377581812,1754448655213,-832.0,0.00035616,14]
[377581813,1754448655224,-400.0,0.00035616,14]
[377581814,1754448655236,-400.0,0.00035616,14]
[377581815,1754448655246,-400.0,0.00035616,14]
[377581816,1754448655256,-1455.67,0.00035616,14]
[377581817,1754448655267,-579.93,0.00035616,14]
[377581818,1754448655277,-1455.67,0.00035616,14]
[377581819,1754448655287,-1455.67,0.00035616,14]
[377581820,1754448655298,-1455.67,0.00035616,14]
[377581821,1754448655308,-400.0,0.00035616,14]
[377581822,1754448655319,-1455.67,0.00035616,14]
[377581823,1754448655330,-717.13,0.00035616,14]
[377581824,1754448655340,-2180.85,0.00035616,14]
[377581825,1754448655350,-400.0,0.00035616,14]
[377581826,1754448655360,-1455.67,0.00035616,14]
[377581827,1754448655371,-1455.67,0.00035616,14]
[377581828,1754448655381,-1455.67,0.00035616,14]
[377581829,1754448655391,-400.0,0.00035616,14]
[377581830,1754448655402,-1455.67,0.00035616,14]
[377581831,1754448655411,-1455.67,0.00035616,14]
[377581832,1754448655422,-1455.67,0.00035616,14]
[377581833,1754448655432,-1455.67,0.00035616,14]
[377581834,1754448655442,-2778.5,0.00035616,14]
[377581835,1754448655453,-1455.67,0.00035616,14]
[377581836,1754448655463,-1455.67,0.00035616,14]
[377581837,1754448655473,-400.0,0.00035616,14]
[377581838,1754448655483,-400.0,0.00035616,14]
[377581839,1754448655494,-1455.67,0.00035616,14]
[377581840,1754448655504,-1455.67,0.00035616,14]
[377581841,1754448655514,-1455.67,0.00035616,14]
[377581842,1754448655524,-400.0,0.00035616,14]
[377581843,1754448655534,-164.597001,0.00035616,7]
[377581844,1754448655544,-400.0,0.00035616,14]
[377581845,1754448655554,-164.597001,0.00035616,7]
[377581846,1754448655564,-400.0,0.00035616,14]
[377581847,1754448655575,-2015.29,0.00035616,14]
[377581848,1754448655584,-164.597001,0.00035616,7]
[377581849,1754448655595,-400.0,0.00035616,14]
[377581850,1754448655605,-3708.79,0.00035616,14]
[377581851,1754448655615,-752.93,0.00035616,14]
[377581852,1754448655625,-400.0,0.00035616,14]
[377581853,1754448655635,-500.0,0.00035616,14]
[377581854,1754448655644,-500.0,0.00035616,14]
[377581855,1754448655654,-500.0,0.00035616,14]
[377581856,1754448655664,-500.0,0.00035616,14]
[377581857,1754448655674,-400.0,0.00035616,14]
[377581858,1754448655684,-500.0,0.00035616,14]
[377581859,1754448655694,-500.0,0.00035616,14]
[377581860,1754448655705,-735.15,0.00035616,14]
[377581861,1754448655715,-500.0,0.00035616,14]
[377581862,1754448655725,-400.0,0.00035616,14]
[377581863,1754448655735,-400.0,0.00035616,14]
[377581864,1754448655745,-461.06446057,0.00035616,14]
[377581865,1754448655755,-500.0,0.00035616,14]
[377581866,1754448655765,-500.0,0.00035616,14]
[377581867,1754448655775,-2553.57,0.00035616,14]
[377581868,1754448655786,-500.0,0.00035616,14]
[377581869,1754448655796,-500.0,0.00035616,14]
[377581870,1754448655806,-500.0,0.00035616,14]
[377581871,1754448655817,-1838.27,0.00035616,14]
[377581872,1754448655827,-500.0,0.00035616,14]
[377581873,1754448655837,-164.597001,0.00035616,7]
[377581874,1754448655847,-627.19477944,0.00035616,14]
[377581875,1754448655860,-400.0,0.00035616,14]
[377581876,1754448655871,-164.597001,0.00035616,7]
[377581877,1754448655881,-1607.76,0.00035616,14]
[377581878,1754448655892,-400.0,0.00035616,14]
[377581879,1754448655904,-164.597001,0.00035616,7]
[377581880,1754448655915,-287.38349083,0.00035616,14]
[377581881,1754448655926,-2459.31,0.00035616,14]
[377581882,1754448655937,-757.96,0.00035616,14]
[377581883,1754448655947,-865.96,0.00035616,14]
[377581884,1754448655958,-400.0,0.00035616,2]
[377581885,1754448655968,-400.0,0.00035616,14]
[377581886,1754448655980,-2248.73,0.00035616,14]
[377581887,1754448655991,-1094.22,0.00035616,14]
[377581888,1754448656002,-587.37,0.00035616,14]
[377581889,1754448656013,-400.0,0.00035616,14]
[377581890,1754448656024,-587.37,0.00035616,14]
[377581891,1754448656036,-587.37,0.00035616,14]
[377581892,1754448656047,-2023.14,0.00035616,14]
[377581893,1754448656058,-842.75,0.00035616,14]
[377581894,1754448656068,-1141.46,0.00035616,14]
[377581895,1754448656079,-587.37,0.00035616,14]
[377581896,1754448656089,-400.0,0.00035616,14]
[377581897,1754448656099,-587.37,0.00035616,14]
[377581898,1754448656110,-587.37,0.00035616,14]
[377581899,1754448656120,-1074.3,0.00035616,14]
[377581900,1754448656131,-587.37,0.00035616,14]
[377581901,1754448656142,-587.37,0.00035616,14]
[377581902,1754448656152,-587.37,0.00035616,14]
[377581903,1754448656164,-587.37,0.00035616,14]
[377581904,1754448656524,-1520.4,0.00035616,14]
[377581905,1754448656534,-587.37,0.00035616,14]
[377581906,1754448656543,-400.0,0.00035616,14]
[377581907,1754448656552,-414.57,0.00035616,14]
[377581908,1754448656562,-587.37,0.00035616,14]
[377581909,1754448656576,-587.37,0.00035616,14]
[377581910,1754448656594,-1903.84,0.00035616,14]
[377581911,1754448656604,-400.0,0.00035616,14]
[377581912,1754448656613,-587.37,0.00035616,14]
[377581913,1754448656623,-587.37,0.00035616,14]
[377581914,1754448656633,-587.37,0.00035616,14]
[377581915,1754448656642,-715.12,0.00035616,14]
[377581916,1754448656652,-400.0,0.00035616,14]
[377581917,1754448656661,-587.37,0.00035616,14]
[377581918,1754448656671,-587.37,0.00035616,14]
[377581919,1754448656680,-587.37,0.00035616,14]
[377581920,1754448656691,-587.37,0.00035616,14]
[377581921,1754448656700,-1769.99,0.00035616,14]
[377581922,1754448656711,-3013.96,0.00035616,14]
[377581923,1754448656720,-450.72,0.00035616,14]
[377581924,1754448656730,-587.37,0.00035616,14]
[377581925,1754448656740,-587.37,0.00035616,14]
[377581926,1754448656749,-1189.15,0.00035616,14]
[377581927,1754448656758,-400.0,0.00035616,14]
[377581928,1754448656767,-587.37,0.00035616,14]
[377581929,1754448656778,-1853.29,0.00035616,14]
[377581930,1754448656787,-400.0,0.00035616,14]
[377581931,1754448656797,-587.47626433,0.00035616,14]
[377581932,1754448656807,-2171.13,0.00035616,14]
[377581933,1754448656816,-492.36,0.00035616,14]
[377581934,1754448656826,-1432.94,0.00035616,14]
[377581935,1754448656836,-2772.54,0.00035616,14]
[377581936,1754448656846,-400.0,0.00035616,14]
[377581937,1754448656858,-660.15,0.00035616,14]
[377581938,1754448656867,-687.86,0.00035616,14]
[377581939,1754448656876,-2123.08,0.00035616,14]
[377581940,1754448656886,-1512.02,0.00035616,14]
[377581941,1754448656897,-400.0,0.00035616,14]
[377581942,1754448656906,-1752.0,0.00035616,14]
[377581943,1754448656916,-400.0,0.00035616,14]
[377581944,1754448656926,-1827.77,0.00035616,14]
[377581945,1754448656936,-400.0,0.00035616,14]
[377581946,1754448656945,-400.0,0.00035616,14]
[377581947,1754448656955,-3809.64,0.00035616,14]
[377581948,1754448656965,-1290.75,0.00035616,14]
[377581949,1754448656975,-400.0,0.00035616,14]
[377581950,1754448656984,-710.17,0.00035616,14]
[377581951,1754448656994,-400.0,0.00035616,14]
[377581952,1754448657004,-400.0,0.00035616,14]
[377581953,1754448657014,-541.8,0.00035616,14]
[377581954,1754448657023,-2320.18,0.00035616,14]
[377581955,1754448657034,-400.0,0.00035616,14]
[377581956,1754448657044,-402.06554391,0.00035616,14]
[377581957,1754448657054,-400.0,0.00035616,14]
[377581958,1754448657063,-2988.22,0.00035616,14]
[377581959,1754448657073,-400.0,0.00035616,14]
[377581960,1754448657083,-650.32,0.00035616,14]
[377581961,1754448657094,-432.19,0.00035616,14]
[377581962,1754448657104,-400.0,0.00035616,14]
[377581963,1754448657114,-400.0,0.00035616,14]
[377581964,1754448657124,-400.0,0.00035616,14]
[377581965,1754448657133,-2121.86,0.00035616,14]
[377581966,1754448657142,-400.3727224,0.00035616,14]
[377581967,1754448657151,-786.46,0.00035616,14]
[377581968,1754448657161,-2067.35,0.00035616,14]
[377581969,1754448657170,-1893.56,0.00035616,14]
[377581970,1754448657179,-1082.92,0.00035616,14]
[377581971,1754448657189,-400.0,0.00035616,14]
[377581972,1754448657198,-436.89,0.00035616,14]
[377581973,1754448657207,-400.0,0.00035616,14]
[377581974,1754448657216,-1091.29,0.00035616,14]
[377581975,1754448657226,-2572.93,0.00035616,14]
[377581976,1754448657237,-403.94,0.00035616,14]
[377581977,1754448657246,-400.0,0.00035616,14]
[377581978,1754448657256,-1090.58,0.00035616,14]
[377581979,1754448657265,-400.0,0.00035616,14]
[377581980,1754448657274,-400.0,0.00035616,14]
[377581981,1754448657283,-456.45,0.00035616,14]
[377581982,1754448657292,-2393.94,0.00035616,14]
[377581983,1754448657302,-2572.33,0.00035616,14]
[377581984,1754448657311,-1310.5,0.00035616,14]
[377581985,1754448657320,-1680.95,0.00035616,14]
[377581986,1754448657341,-569.78,0.00035616,14]
[377581987,1754448657350,-541.54,0.00035616,14]
[377581988,1754448657360,-615.57,0.00035616,14]
[377581989,1754448657373,-151.0,0.00035616,7]
[377581990,1754448657382,-1272.84,0.00035616,14]
[377581991,1754448657392,-400.0,0.00035616,14]
[377581992,1754448657403,-1882.26,0.00035616,14]
[377581994,1754448657412,-151.0,0.00035616,7]
[377581995,1754448657421,-205.350205,0.00035616,7]
[377581996,1754448657430,-400.0,0.00035616,14]
[377581997,1754448657439,-1821.93,0.00035616,14]
[377581998,1754448657449,-400.0,0.00035616,14]
[377581999,1754448657458,-400.0,0.00035616,14]
[377582000,1754448657467,-819.87,0.00035616,14]
[377582001,1754448657477,-472.45,0.00035616,14]
[377582002,1754448657487,-1723.53,0.00035616,14]
[377582003,1754448657496,-400.0,0.00035616,14]
[377582004,1754448657505,-400.0,0.00035616,14]
[377582005,1754448657515,-400.0,0.00035616,14]
[377582006,1754448657524,-400.0,0.00035616,14]
[377582007,1754448657534,-2205.0,0.00035616,14]
[377582008,1754448657544,-400.0,0.00035616,14]
[377582009,1754448657554,-400.0,0.00035616,14]
[377582010,1754448657564,-400.0,0.00035616,14]
[377582011,1754448657573,-571.97,0.00035616,14]
[377582012,1754448657583,-400.0,0.00035616,14]
[377582013,1754448657592,-400.0,0.00035616,14]
[377582014,1754448657602,-520.59,0.00035616,14]
[377582015,1754448657611,-400.0,0.00035616,14]
[377582016,1754448657620,-520.59,0.00035616,14]
[377582017,1754448657629,-400.0,0.00035616,14]
[377582018,1754448657638,-400.0,0.00035616,14]
[377582019,1754448657648,-2459.29,0.00035616,14]
[377582020,1754448657657,-520.59,0.00035616,14]
[377582021,1754448657667,-1328.89,0.00035616,14]
[377582022,1754448657677,-520.59,0.00035616,14]
[377582023,1754448657686,-1450.07,0.00035616,14]
[377582024,1754448657696,-520.59,0.00035616,14]
[377582025,1754448657706,-400.0,0.00035616,14]
[377582026,1754448657715,-520.59,0.00035616,14]
[377582027,1754448657724,-520.59,0.00035616,14]
[377582028,1754448657735,-520.59,0.00035616,14]
[377582029,1754448657744,-498.72,0.00035616,14]
[377582030,1754448657754,-401.29770288,0.00035616,14]
[377582031,1754448657763,-400.0,0.00035616,14]
[377582032,1754448657774,-400.0,0.00035616,14]
[377582033,1754448657785,-2851.05,0.00035616,14]
[377582034,1754448657795,-2050.67,0.00035616,14]
[377582035,1754448657807,-1998.0,0.00035616,14]
[377582036,1754448657817,-2177.61,0.00035616,14]
[377582037,1754448657826,-400.0,0.00035616,14]
[377582038,1754448657836,-400.0,0.00035616,14]
[377582039,1754448657846,-400.0,0.00035616,14]
[377582040,1754448657857,-565.91,0.00035616,14]
[377582041,1754448657866,-2230.94,0.00035616,14]
[377582042,1754448657876,-400.0,0.00035616,14]
[377582043,1754448657885,-400.0,0.00035616,14]
[377582044,1754448657896,-1743.92,0.00035616,14]
[377582045,1754448657906,-1023.05,0.00035616,14]
[377582046,1754448657915,-400.0,0.00035616,14]
[377582047,1754448657924,-518.06,0.00035616,14]
[377582048,1754448657939,-1541.91,0.00035616,14]
[377582049,1754448657948,-756.79,0.00035616,14]
[377582050,1754448657958,-400.0,0.00035616,14]
[377582051,1754448657968,-756.79,0.00035616,14]
[377582052,1754448657978,-1947.18,0.00035616,14]
[377582053,1754448657988,-756.79,0.00035616,14]
[377582054,1754448657998,-714.01,0.00035616,14]
[377582055,1754448658008,-1840.41,0.00035616,14]
[377582056,1754448658018,-400.0,0.00035616,14]
[377582057,1754448658027,-714.01,0.00035616,14]
[377582058,1754448658037,-756.79,0.00035616,14]
[377582059,1754448658046,-714.01,0.00035616,14]
[377582060,1754448658055,-756.79,0.00035616,14]
[377582061,1754448658065,-714.01,0.00035616,14]
[377582062,1754448658074,-756.79,0.00035616,14]
[377582063,1754448658083,-714.01,0.00035616,14]
[377582064,1754448658093,-756.79,0.00035616,14]
[377582065,1754448658103,-1701.37,0.00035616,14]
[377582066,1754448658113,-714.01,0.00035616,14]
[377582067,1754448658122,-756.79,0.00035616,14]
[377582068,1754448658131,-400.0,0.00035616,14]
[377582069,1754448658140,-714.01,0.00035616,14]
[377582070,1754448658149,-714.01,0.00035616,14]
[377582071,1754448658158,-714.01,0.00035616,14]
[377582072,1754448658167,-714.01,0.00035616,14]
[377582073,1754448658177,-714.01,0.00035616,14]
[377582074,1754448658187,-3617.37,0.00035616,14]
[377582075,1754448658196,-400.0,0.00035616,14]
[377582076,1754448658205,-714.01,0.00035616,14]
[377582077,1754448658214,-400.0,0.00035616,14]
[377582078,1754448658223,-1293.69,0.00035616,14]
[377582079,1754448658233,-714.01,0.00035616,14]
[377582080,1754448658243,-4869.21,0.00035616,14]
[377582081,1754448658253,-400.0,0.00035616,14]
[377582082,1754448658262,-2062.42,0.00035616,14]
[377582083,1754448658270,-1163.86,0.00035616,14]
[377582084,1754448658280,-400.0,0.00035616,14]
[377582085,1754448658289,-1704.62,0.00035616,14]
[377582086,1754448658299,-714.01,0.00035616,14]
[377582087,1754448658308,-151.0,0.00035616,7]
[377582088,1754448658317,-714.01,0.00035616,14]
[377582089,1754448658327,-714.01,0.00035616,14]
[377582090,1754448658336,-162.157196,0.00035616,7]
[377582091,1754448658345,-1802.74,0.00035616,14]
[377582092,1754448658354,-714.01,0.00035616,14]
[377582093,1754448658364,-714.01,0.00035616,14]
[377582094,1754448658373,-714.01,0.00035616,14]
[377582095,1754448658382,-714.01,0.00035616,14]
[377582096,1754448658391,-2004.98,0.00035616,14]
[377582097,1754448658401,-2082.15,0.00035616,14]
[377582098,1754448658410,-714.01,0.00035616,14]
[377582099,1754448658419,-714.01,0.00035616,14]
[377582100,1754448658429,-714.01,0.00035616,14]
[377582101,1754448658438,-714.16777022,0.00035616,14]
[377582102,1754448658447,-2421.14,0.00035616,14]
[377582103,1754448658457,-578.97,0.00035616,14]
[377582104,1754448658467,-216.45870514,0.00035616,14]
[377582105,1754448658476,-1140.6,0.00035616,14]
[377582106,1754448658485,-151.0,0.00035616,7]
[377582107,1754448658494,-151.0,0.00035616,7]
[377582108,1754448658503,-400.0,0.00035616,14]
[377582109,1754448658512,-2059.67,0.00035616,14]
[377582110,1754448658522,-156.874092,0.00035616,7]
[377582111,1754448658531,-400.0,0.00035616,14]
[377582112,1754448658540,-400.0,0.00035616,14]
[377582113,1754448658549,-400.0,0.00035616,14]
[377582114,1754448658559,-400.0,0.00035616,14]
[377582115,1754448658572,-400.0,0.00035616,14]
[377582116,1754448658581,-400.0,0.00035616,14]
[377582117,1754448658591,-400.0,0.00035616,14]
[377582118,1754448658600,-400.0,0.00035616,14]
[377582119,1754448658610,-2008.93,0.00035616,14]
[377582120,1754448658619,-400.0,0.00035616,14]
[377582121,1754448658628,-400.0,0.00035616,14]
[377582122,1754448658637,-400.0,0.00035616,14]
[377582123,1754448658646,-400.99847997,0.00035616,14]
[377582124,1754448658656,-401.16013664,0.00035616,14]
[377582125,1754448658667,-1854.33,0.00035616,14]
[377582126,1754448658677,-400.0,0.00035616,14]
[377582127,1754448658686,-400.0,0.00035616,14]
[377582128,1754448658696,-1042.45,0.00035616,14]
[377582129,1754448658706,-904.89,0.00035616,14]
[377582130,1754448658715,-400.0,0.00035616,14]
[377582131,1754448658724,-400.0,0.00035616,14]
[377582132,1754448658733,-995.71,0.00035616,14]
[377582133,1754448658743,-400.0,0.00035616,14]
[377582134,1754448658752,-1949.77,0.00035616,14]
[377582135,1754448658761,-717.97,0.00035616,14]
[377582136,1754448658771,-400.0,0.00035616,14]
[377582137,1754448658780,-439.26,0.00035616,14]
[377582138,1754448658790,-944.69,0.00035616,14]
[377582139,1754448658799,-400.0,0.00035616,14]
[377582140,1754448658809,-1533.65,0.00035616,14]
[377582141,1754448658822,-400.0,0.00035616,14]
[377582142,1754448658831,-400.0,0.00035616,14]
[377582143,1754448658841,-564.92,0.00035616,14]
[377582144,1754448658855,-400.0,0.00035616,14]
[377582145,1754448658864,-400.0,0.00035616,14]
[377582146,1754448658874,-400.0,0.00035616,14]
[377582147,1754448658888,-1068.1,0.00035616,14]
[377582148,1754448658906,-1225.03,0.00035616,14]
[377582149,1754448658919,-400.0,0.00035616,14]
[377582150,1754448658937,-400.0,0.00035616,14]
[377582151,1754448658954,-423.39,0.00035616,14]
[377582152,1754448658970,-400.0,0.00035616,14]
[377582153,1754448658982,-400.0,0.00035616,14]
[377582154,1754448658999,-463.8,0.00035616,14]
[377582155,1754448659015,-5248.2,0.00035616,14]
[377582156,1754448659034,-1276.5,0.00035616,14]
[377582157,1754448659050,-2409.79,0.00035616,14]
[377582158,1754448659068,-400.0,0.00035616,14]
[377582159,1754448659083,-400.0,0.00035616,14]
[377582160,1754448659100,-400.0,0.00035616,14]
[377582161,1754448659117,-400.0,0.00035616,14]
[377582162,1754448659130,-400.0,0.00035616,14]
[377582163,1754448659143,-400.0,0.00035616,14]
[377582164,1754448659161,-500.0,0.00035616,14]
[377582165,1754448659172,-919.64,0.00035616,14]
[377582166,1754448659190,-465.73,0.00035616,14]
[377582167,1754448659204,-1930.39,0.00035616,14]
[377582168,1754448659217,-500.0,0.00035616,14]
[377582169,1754448659232,-500.0,0.00035616,14]
[377582170,1754448659247,-481.93,0.00035616,14]
[377582171,1754448659261,-500.0,0.00035616,14]
[377582172,1754448659276,-500.0,0.00035616,14]
[377582173,1754448659290,-1103.37,0.00035616,14]
[377582174,1754448659304,-400.0,0.00035616,14]
[377582175,1754448659320,-1103.37,0.00035616,14]
[377582176,1754448659334,-500.0,0.00035616,14]
[377582177,1754448659348,-1103.37,0.00035616,14]
[377582178,1754448659361,-500.0,0.00035616,14]
[377582179,1754448659375,-680.58,0.00035616,14]
[377582180,1754448659389,-1103.37,0.00035616,14]
[377582181,1754448659403,-500.0,0.00035616,14]
[377582182,1754448659420,-1103.37,0.00035616,14]
[377582183,1754448659434,-500.0,0.00035616,14]
[377582184,1754448659449,-1103.37,0.00035616,14]
[377582185,1754448659463,-500.0,0.00035616,14]
[377582186,1754448659477,-1671.93,0.00035616,14]
[377582187,1754448659491,-1103.37,0.00035616,14]
[377582188,1754448659506,-491.35407818,0.00035616,14]
[377582189,1754448659520,-1103.37,0.00035616,14]
[377582190,1754448659533,-1873.43,0.00035616,14]
[377582191,1754448659547,-400.0,0.00035616,14]
[377582192,1754448659561,-1103.37,0.00035616,14]
[377582193,1754448659575,-1103.37,0.00035616,14]
[377582194,1754448659589,-1103.37,0.00035616,14]
[377582195,1754448659603,-1103.37,0.00035616,14]
[377582196,1754448659618,-400.0,0.00035616,14]
[377582197,1754448659633,-1103.37,0.00035616,14]
[377582198,1754448659648,-1103.37,0.00035616,14]
[377582199,1754448659675,-2002.8,0.00035616,14]
[377582200,1754448659688,-1103.37,0.00035616,14]
[377582201,1754448659702,-1103.37,0.00035616,14]
[377582202,1754448659716,-400.0,0.00035616,14]
[377582203,1754448659731,-3610.35,0.00035616,14]
[377582204,1754448659746,-1103.37,0.00035616,14]
[377582205,1754448659760,-1103.37,0.00035616,14]
[377582206,1754448659775,-400.0,0.00035616,14]
[377582207,1754448659791,-1784.3,0.00035616,14]
[377582208,1754448659805,-1103.37,0.00035616,14]
[377582209,1754448659819,-400.0,0.00035616,14]
[377582210,1754448659833,-500.0,0.00035616,10]
[377582211,1754448659846,-1103.37,0.00035616,14]
[377582212,1754448659863,-1103.37,0.00035616,14]
[377582213,1754448659876,-1103.37,0.00035616,14]
[377582214,1754448659891,-1103.37,0.00035616,14]
[377582215,1754448659904,-1103.45,0.00035616,14]
[377582216,1754448659917,-1790.5,0.00035616,14]
[377582217,1754448659930,-400.0,0.00035616,14]
[377582218,1754448659943,-400.0,0.00035616,14]
[377582219,1754448659956,-400.0,0.00035616,14]
[377582220,1754448659970,-400.0,0.00035616,14]
[377582221,1754448659984,-400.0,0.00035616,14]
[377582222,1754448659998,-400.0,0.00035616,14]
[377582223,1754448660011,-400.0,0.00035616,14]
[377582224,1754448660027,-400.0,0.00035616,14]
[377582225,1754448660040,-400.0,0.00035616,14]
[377582226,1754448660054,-400.0,0.00035616,14]
[377582227,1754448660068,-400.0,0.00035616,14]
[377582228,1754448660082,-400.0,0.00035616,14]
[377582229,1754448660095,-1409.58,0.00035616,14]
[377582230,1754448660109,-500.0,0.00035616,14]
[377582231,1754448660124,-500.0,0.00035616,14]
[377582232,1754448660138,-769.03,0.00035616,14]
[377582233,1754448660151,-500.0,0.00035616,14]
[377582234,1754448660166,-400.0,0.00035616,14]
[377582235,1754448660180,-500.0,0.00035616,14]
[377582236,1754448660193,-400.0,0.00035616,14]
[377582237,1754448660207,-500.0,0.00035616,14]
[377582238,1754448660221,-400.48030599,0.00035616,14]
[377582239,1754448660233,-500.0,0.00035616,14]
[377582240,1754448660247,-400.0,0.00035616,14]
[377582241,1754448660261,-500.0,0.00035616,14]
[377582242,1754448660275,-589.06,0.00035616,14]
[377582243,1754448660288,-400.0,0.00035616,14]
[377582244,1754448660302,-500.0,0.00035616,14]
[377582245,1754448660314,-403.19223395,0.00035616,14]
[377582246,1754448660329,-400.0,0.00035616,14]
[377582247,1754448660342,-1264.89,0.00035616,14]
[377582248,1754448660356,-1966.76,0.00035616,14]
[377582249,1754448660369,-512.20116664,0.00035616,14]
[377582250,1754448660384,-493.42,0.00035616,14]
[377582251,1754448660398,-2193.87,0.00035616,14]
[377582252,1754448660412,-446.21,0.00035616,14]
[377582253,1754448660427,-400.0,0.00035616,14]
[377582254,1754448660440,-278.76512662,0.00035616,14]
[377582255,1754448660454,-950.01,0.00035616,14]
[377582256,1754448660468,-400.0,0.00035616,14]
[377582257,1754448660480,-1081.98,0.00035616,14]
[377582258,1754448660494,-400.0,0.00035616,14]
[377582259,1754448660508,-974.88,0.00035616,14]
[377582260,1754448660521,-662.34,0.00035616,14]
[377582261,1754448660534,-400.0,0.00035616,14]
[377582262,1754448660548,-400.0,0.00035616,14]
[377582263,1754448660561,-358.04407193,0.00035616,14]
[377582264,1754448660574,-400.0,0.00035616,14]
[377582265,1754448660587,-861.94,0.00035616,14]
[377582266,1754448660601,-2313.76,0.00035616,14]
[377582267,1754448660615,-552.31,0.00035616,14]
[377582268,1754448660628,-400.0,0.00035616,14]
[377582269,1754448660641,-2151.64,0.00035616,14]
[377582270,1754448660654,-433.2,0.00035616,14]
[377582271,1754448660669,-400.0,0.00035616,2]
[377582272,1754448660682,-400.0,0.00035616,14]
[377582273,1754448660696,-400.0,0.00035616,14]
[377582274,1754448660710,-2093.1,0.00035616,14]
[377582275,1754448660725,-2798.78,0.00035616,14]
[377582276,1754448660739,-449.21513889,0.00035616,14]
[377582277,1754448660754,-400.0,0.00035616,14]
[377582278,1754448660767,-400.0,0.00035616,14]
[377582279,1754448660781,-1160.89,0.00035616,14]
[377582280,1754448660795,-1069.38,0.00035616,14]
[377582281,1754448660809,-825.71,0.00035616,14]
[377582282,1754448660822,-2866.67,0.00035616,14]
[377582283,1754448660835,-1990.46,0.00035616,14]
[377582284,1754448660849,-400.0,0.00035616,14]
[377582285,1754448660866,-522.05640672,0.00035616,14]
[377582286,1754448660879,-400.0,0.00035616,14]
[377582287,1754448660893,-151.0,0.00035616,7]
[377582288,1754448660906,-151.0,0.00035616,7]
[377582289,1754448660920,-151.0,0.00035616,7]
[377582290,1754448660933,-542.03875243,0.00035616,14]
[377582291,1754448660948,-400.0,0.00035616,14]
[377582292,1754448660962,-534.6,0.00035616,14]
[377582293,1754448660977,-2248.31,0.00035616,14]
[377582294,1754448660991,-400.0,0.00035616,14]
[377582295,1754448661004,-400.0,0.00035616,14]
[377582296,1754448661017,-2830.73,0.00035616,14]
[377582297,1754448661031,-400.0,0.00035616,14]
[377582298,1754448661046,-400.0,0.00035616,14]
[377582299,1754448661062,-877.07,0.00035616,14]
[377582300,1754448661076,-636.63,0.00035616,14]
[377582301,1754448661092,-1151.11,0.00035616,14]
[377582302,1754448661106,-1232.95,0.00035616,14]
[377582303,1754448661121,-400.4643829,0.00035616,14]
[377582304,1754448661134,-400.76525206,0.00035616,14]
[377582305,1754448661148,-404.16,0.00035616,14]
[377582306,1754448661164,-400.0,0.00035616,14]
[377582307,1754448661178,-2812.46,0.00035616,14]
[377582308,1754448661191,-2179.89,0.00035616,14]
[377582309,1754448661208,-663.46,0.00035616,14]
[377582310,1754448661224,-4617.44,0.00035616,14]
[377582311,1754448661238,-400.0,0.00035616,14]